Workbook

Sheet Sheet1
A1: 2024年生产部4月接收处置记录统计表 | Q1: 自产废物
A2: 废物名称 | B2: 危废代码 | C2: 形态 | D2: 上月结存 | E2: 本月接收量 | F2: 处置量及工艺 | J2: 库存量 | K2: 1#库 | L2: 2#库 | M2: 罐区 | N2: 料坑 | Q2: 废物名称 | R2: 上月结存 | S2: 本月产生量 | T2: 包数 | U2: 本月处理 | X2: 库存 | Y2: 备注 | Z2: 存储位置
F3: 固废焚烧 | G3: 废液焚烧 | H3: 清洗大桶 | I3: 污泥干化 | K3: 1#库 | L3: 2#库 | M3: 罐区 | N3: 料坑 | U3: 焚烧处置 | V3: 液体炉 | W3: 拉运
A4: 废有机溶剂 | B4: 271-002-02 | C4: 液态 | D4: 15.321 | J4: =D4+E4-F4-G4-H4-I4 -> 15.321 | L4: 15.321 | O4: =K4+L4+M4+N4 -> 15.321 | Q4: 炉渣（回转窑） | R4: 505.882 | S4: 148.905 | T4: 137 | W4: 124.785 | X4: =R4+S4-U4-W4-V4 -> 530.002
A5: 废盐 | B5: 271-005-02 | C5: 固态 | D5: 0 | E5: =46.18 -> 46.18 | F5: =9.28 -> 9.28 | J5: 36.9 | K5: 36.9 | O5: 36.9 | Q5: 飞灰（回转窑） | R5: 21.445 | S5: 17.41 | T5: 47 | W5: 18.46 | X5: 20.395
A6: 实验室废液 | B6: 900-002-03 | C6: 液态 | D6: 0 | E6: =29.641 -> 29.641 | F6: =0.75 -> 0.75 | G6: 14.123 | J6: 14.768 | L6: 14.768 | O6: 14.768 | Q6: 飞灰（废液炉） | R6: 3.275 | S6: 1.125 | T6: 3 | W6: 2.515 | X6: 1.885
A7: 高危化学品 | B7: 900-002-03 | C7: 半固态 | D7: 0 | E7: =0.116 -> 0.116 | F7: =0.116 -> 0.116 | J7: 0 | O7: 0 | Q7: 废油渣/泥 | R7: 0 | X7: 0 | Y7: 精馏切水后剩下的罐底泥
A8: 一般废药品 | B8: 900-002-03 | C8: 固态 | D8: 0 | E8: =3.66888 -> 3.66888 | F8: =3.66888 -> 3.66888 | J8: 0 | O8: 0 | Q8: 含油污水 | R8: 0 | S8: 2.68 | U8: 2.68 | X8: 0 | Y8: 蒸汽清洗过程 | Z8: 2#库
A9: 磷化铝、杀虫剂 | B9: 900-003-04 | C9: 固态 | D9: 0 | J9: 0 | O9: 0 | Q9: 废商标 | R9: 0 | S9: 0.36 | U9: 0.36 | X9: 0 | Y9: 除商标 | Z9: 2#库
A10: 废盐 | B10: 263-008-04 | C10: 固态 | D10: 12.16 | F10: 12.16 | J10: 0 | O10: 0 | Q10: 废残液 | R10: 0 | S10: 1.68 | U10: 1.68 | X10: 0 | Y10: 抽残液 | Z10: 2#库
A11: 蒸馏残液 | B11: 263-008-04 | C11: 半固态 | D11: 13.18 | J11: 13.18 | K11: 13.18 | O11: 13.18 | Q11: 废渣 | R11: 0 | S11: 0.94 | U11: 0.94 | X11: 0 | Y11: 清洗过程 | Z11: 2#库
A12: 污泥 | B12: 263-011-04 | C12: 固态 | D12: 2.48 | J12: 2.48 | K12: 2.48 | O12: 2.48 | Q12: 漆渣 | R12: 0 | X12: 0 | Y12: 清洗过程
A13: 废有机溶剂 | B13: 900-401-06 | C13: 液态 | D13: 0.86 | F13: =0.86 -> 0.86 | J13: 0 | O13: 0 | Q13: 污水厂污泥 | R13: 0 | X13: 0 | Y13: 水处理后产生的污泥 | Z13: 2#库
A14: 废有机溶剂及废物 | B14: 900-402-06 | C14: 液态 | D14: 103.936 | E14: 31.259 | F14: 24.85 | G14: 10 | J14: 100.345 | K14: 2.094 | L14: 98.251 | O14: 100.345 | Q14: 废清洗剂 | R14: 0 | X14: 0 | Y14: 清洗剂清洗过程
A15: 废有机溶剂 | B15: 900-404-06 | C15: 液态 | D15: 7.39 | E15: 1.38 | J15: 8.77 | L15: 8.77 | O15: 8.77
A16: 丙烯酸甲酯聚合物 | B16: 900-407-06 | C16: 固态 | D16: 2.24 | F16: 2.24 | J16: 0 | O16: 0
A17: 废有机溶剂 | B17: 900-407-06 | C17: 液态 | D17: 56.9719 | J17: 56.9719 | K17: 35.85 | L17: 21.1219 | O17: 56.9719
A18: 油污水 | B18: 251-001-08 | C18: 液态 | D18: 6.5 | F18: 6.5 | J18: 0 | O18: 0
A19: 废溶剂油 | B19: 291-001-08 | C19: 液态 | D19: 0 | E19: 1.35 | J19: 1.35 | L19: 1.35 | O19: 1.35
A20: 废溶剂油 | B20: 291-001-08 | C20: 半固态 | D20: 42.52 | J20: 42.52 | K20: 42.52 | O20: 42.52
A21: 含油泥浆 | B21: 071-002-08 | C21: 液态 | D21: 1776.5 | E21: 419.1 | I21: =1767.7+185.9 -> 1953.6 | J21: 242 | M21: =427.9-185.9 -> 242 | O21: 242
A22: 含油岩屑 | B22: 071-002-08 | C22: 半固态 | D22: 1145.381 | E22: 813.12 | J22: 1958.501 | M22: =1551.814+200 -> 1751.814 | N22: =406.687-200 -> 206.687 | O22: 1958.501
A23: 废油泥 | B23: 900-200-08 | C23: 半固态 | D23: 0 | E23: 4.77 | J23: 4.77 | L23: 4.77 | O23: 4.77
A24: HW08废油 | B24: 900-200-08 | C24: 液态 | D24: 7.38 | E24: 5.02 | J24: 12.4 | M24: 12.4 | O24: 12.4
A25: 油泥 | B25: 900-201-08 | C25: 液态 | D25: 3.226 | E25: 2.24 | J25: 5.466 | M25: 5.466 | O25: 5.466
A26: 废润滑油废浮渣 | B26: 900-209-08 | C26: 液态 | D26: 0 | E26: =0.5 -> 0.5 | F26: 0.5 | J26: 0 | O26: 0
A27: 水处理浮渣及污泥 | B27: 900-210-08 | C27: 半固态 | D27: 0 | E27: 0.64 | J27: 0.64 | K27: 0.64 | O27: 0.64
A28: 废机油、含油废水 | B28: 900-210-08 | C28: 液态 | D28: 184.42 | E28: 1.209 | J28: 185.629 | K28: 1.209 | M28: 184.42 | O28: 185.629
A29: 废水处理过程产废油、油泥、浮渣 | B29: 900-210-08 | C29: 液态 | D29: 816 | E29: 256 | J29: 1072 | M29: 1072 | O29: 1072
A30: 废白土 | B30: 900-213-08 | C30: 固态 | D30: 0 | E30: 50.54 | F30: 50.54 | J30: 0 | O30: 0
A31: 废机油 | B31: 900-213-08 | C31: 液态 | D31: 1 | J31: 1 | M31: 1 | O31: 1
A32: 废矿物油 | B32: 900-214-08 | C32: 液态 | D32: 41.6808 | E32: 5.3738 | J32: 47.0546 | M32: 47.0546 | O32: 47.0546
B33: 900-214-08 | C33: 半固态 | D33: 0 | E33: 0.56 | J33: 0.56 | L33: 0.56 | O33: 0.56
A34: 废矿物油 | B34: 900-217-08 | C34: 液态 | D34: 11.795 | E34: 1.2 | J34: 12.995 | M34: 12.995 | O34: 12.995
A35: 废液压油 | B35: 900-218-08 | C35: 液态 | D35: 39.2908 | J35: 39.2908 | M35: 39.2908 | O35: 39.2908
A36: 废冷冻机油 | B36: 900-219-08 | C36: 液态 | D36: 2.76 | E36: 0.68 | J36: 3.44 | M36: 3.44 | O36: 3.44
A37: 废矿物油与含矿物油废物 | B37: 900-220-08 | C37: 液态 | D37: 0.7 | E37: 45.04833 | F37: 28.56 | G37: 7.67 | J37: 9.51833 | M37: 9.51833 | O37: 9.51833
A38: 废矿物油 | B38: 900-249-08 | C38: 液态 | D38: 176.6029 | E38: 4.6106 | F38: 3.5 | G38: 5 | J38: 172.7135 | M38: 172.7135 | O38: 172.7135
A39: 废矿物油、废油桶 | B39: 900-249-08 | C39: 固态 | D39: 28.19 | E39: 33.926 | H39: 22.416 | J39: 39.7 | K39: 5.96 | L39: 33.74 | O39: 39.7
A40: 废矿物油、油泥 | B40: 900-249-08 | C40: 半固态 | D40: 15.31 | F40: 0.17 | J40: 15.14 | K40: 2.32 | L40: 12.82 | O40: 15.14
A41: 废水、乳化液 | B41: 900-007-09 | C41: 液态 | D41: 10.65 | E41: 0.19 | F41: 0.5 | G41: 1 | J41: 9.34 | L41: 8.94 | M41: 0.4 | O41: 9.34
A42: 废乳化液 | B42: 900-006-09 | C42: 液态 | D42: 102.1 | E42: 32.28 | F42: 0.88 | G42: 77.02 | J42: 56.48 | L42: 56.48 | O42: 56.48
A43: 砂轮沫 | B43: 900-006-09 | C43: 固态 | D43: 0 | J43: 0 | O43: 0
A44: 煤焦油、釜残 | B44: 900-013-11 | C44: 固态 | D44: 18.461 | E44: 6.7614 | J44: 25.2224 | K44: 14 | L44: 11.2224 | O44: 25.2224
A45: 煤焦油 | B45: 900-013-11 | C45: 液态 | D45: 25.4 | J45: 25.4 | K45: 21 | M45: 4.4 | O45: 25.4
A46: 釜残 | B46: 900-013-11 | C46: 半固态 | D46: 104.94 | E46: 156.177 | F46: 36.08 | J46: 225.037 | K46: 192.117 | L46: 32.92 | O46: 225.037
A47: 煤焦油 | B47: 451-003-11 | C47: 液态 | D47: 99.6 | J47: 99.6 | L47: 5.8 | M47: 93.8 | O47: 99.6
A48: 漆渣 | B48: 900-250-12 | C48: 固态 | D48: 0 | E48: 2 | F48: 2 | J48: 0 | O48: 0
A49: 废彩涂液 | B49: 900-252-12 | C49: 液态 | D49: 21.92 | E49: 24.4 | J49: 46.32 | K49: 21.92 | L49: 24.4 | O49: 46.32
A50: 废漆渣 | B50: 900-252-12 | C50: 固态 | D50: 30.74 | E50: 215.82 | F50: 122.5 | H50: 0.86 | J50: 123.2 | K50: 107.02 | L50: 16.18 | O50: 123.2
A51: 油墨渣子、油漆 | B51: 900-252-12 | C51: 半固态 | D51: 0 | E51: 6.685 | F51: 0.865 | J51: 5.82 | L51: 5.82 | O51: 5.82
A52: 硒鼓墨盒 | B52: 900-299-12 | C52: 固态 | D52: 0 | E52: 0.18078 | F52: 0.18078 | J52: 0 | O52: 0
A53: 油漆渣 | B53: 900-299-12 | C53: 液态 | D53: 2.32 | E53: 0.045 | F53: 0.045 | J53: 2.32 | K53: 2.32 | O53: 2.32
A54: 废水处理污泥 | B54: 264-012-12 | C54: 固态 | D54: 8 | J54: 8 | K54: 8 | O54: 8
A55: 发泡废料，废胶水 | B55: 900-014-13 | C55: 半固态 | D55: 0.166 | J55: 0.166 | K55: 0.166 | O55: 0.166
A56: 发泡废料，废胶水 | B56: 900-014-13 | C56: 固态 | D56: 0.3 | E56: 0.6068 | F56: 0.9068 | J56: 0 | O56: 0
A57: 有机树脂废物 | B57: 900-016-13 | C57: 半固态 | D57: 3.57 | E57: 6.5 | J57: 10.07 | K57: 6.5 | L57: 3.57 | O57: 10.07
A58: 含盐废水 | B58: 265-103-13 | C58: 液态 | D58: 9.42 | J58: 9.42 | K58: 9.42 | O58: 9.42
A59: 废显影液 | B59: 900-019-16 | C59: 液态 | D59: 0 | E59: 0.007 | F59: 0.007 | J59: 0 | O59: 0
A60: 污泥 | B60: 336-053-17 | C60: 固态 | D60: 0 | J60: 0 | O60: 0
A61: 镀铜溶液 | B61: 336-062-17 | C61: 液态 | D61: 11.52 | J61: 11.52 | M61: 11.52 | O61: 11.52
A62: 废槽渣 | B62: 336-064-17 | C62: 固态 | D62: 0 | E62: 24.17 | F62: 7.25 | J62: 16.92 | L62: 16.92 | O62: 16.92
A63: 金属表面处理污泥 | B63: 336-064-17 | C63: 半固态 | D63: 1.54 | E63: 2.42 | J63: 3.96 | K63: 1.54 | L63: 2.42 | O63: 3.96
A64: 金属表面处理污泥 | B64: 336-064-17 | C64: 液态 | D64: 4.81 | E64: 0.55 | F64: 1.13 | J64: 4.23 | L64: 4.23 | O64: 4.23
A65: 片碱袋 | B65: 900-399-35 | C65: 固态 | D65: 0 | E65: 0.6345 | F65: 0.6345 | J65: 0 | O65: 0
A66: 清洁剂 | B66: 900-399-35 | C66: 液态 | D66: 0 | E66: 37.02 | J66: 37.02 | L66: 37.02 | O66: 37.02
A67: 废硫氢化钠残渣 | B67: 900-399-35 | C67: 半固态 | D67: 10 | J67: 10 | L67: 10 | O67: 10
A68: 废碱液 | B68: 900-352-35 | C68: 液态 | D68: 97.09 | E68: 7.05 | J68: =D68+E68-F68-G68-H68-I68 -> 104.14 | K68: 48.08 | L68: 56.06 | O68: =K68+L68+M68+N68 -> 104.14
A69: 废碱液 | B69: 900-354-35 | C69: 液态 | D69: 0.9 | J69: 0.9 | L69: 0.9 | O69: 0.9
A70: 含酚废水 | B70: 261-070-39 | C70: 液态 | D70: 157.22 | F70: 29.12 | J70: 128.1 | M70: 128.1 | O70: 128.1
A71: 污泥 | B71: 261-084-45 | C71: 固态 | D71: 3.44 | J71: 3.44 | K71: 3.44 | O71: 3.44
A72: 含油废物 | B72: 900-041-49 | C72: 固态 | D72: 1682.026 | E72: 1105.87958 | F72: 1076.21528 | H72: 42.8302 | J72: 1668.8601 | K72: =1239.1335-250 -> 989.1335 | L72: 429.7266 | N72: 250 | O72: 1668.8601
A73: 废酸碱袋 | B73: 900-042-49 | C73: 固态 | D73: 0 | E73: 1.435 | F73: 1.435 | J73: 0 | O73: 0
A74: 污泥 | B74: 772-006-49 | C74: 固态 | D74: 0 | E74: 27.56 | J74: 27.56 | L74: 27.56 | O74: 27.56
A75: 废活性炭 | B75: 900-039-49 | C75: 固态 | D75: 14.32 | E75: 29.348 | F75: 36.688 | J75: 6.98 | L75: 6.98 | O75: 6.98
A76: 废水污泥 | B76: 900-046-49 | C76: 固态 | D76: 4.2 | J76: 4.2 | K76: 4.2 | O76: 4.2
A77: 过期化学药品 | B77: 900-047-49 | C77: 固态 | D77: 0 | E77: 1.003 | F77: 1.003 | J77: 0 | O77: 0
A78: 乙腈、异丙酮、废液 | B78: 900-047-49 | C78: 液态 | D78: 0 | E78: 40.92398 | F78: 6.64038 | G78: 23.3393 | J78: 10.9443 | L78: 10.9443 | O78: 10.9443
A79: 防护服 | B79: 900-999-49 | C79: 固态 | D79: 0 | E79: 0.00442 | F79: 0.00442 | J79: 0
A80: 过期面膜原料、残液 | B80: 900-999-49 | C80: 液态 | D80: 16.176 | E80: 0.026 | F80: 0.026 | G80: 7.18 | J80: 8.996 | K80: 1.996 | L80: 7 | O80: =K80+L80+M80+N80 -> 8.996
A81: 废催化剂 | B81: 261-152-50 | C81: 固态 | D81: 3.32 | F81: 3.32 | J81: 0 | O81: =K81+L81+M81+N81 -> 0
A82: 小计： | D82: 6957.9444 | E82: =SUM(E4:E81) -> 3487.81007 | F82: 1471.12604 | G82: 145.3323 | H82: 66.1062 | I82: 1953.6 | J82: 6809.58993 | K82: =SUM(K4:K81) -> 1574.0055 | L82: 986.5652 | M82: 3792.33223 | N82: 456.687 | O82: 6809.58993
A83: 合计： | F83: =F82+G82+H82+I82 -> 3636.16454
A86: 1月转走0.04康辉新材料 | B86: 0.04
